[Event "Denmark Team Championship 2022"]
[Site "Denmark"]
[Date "2022.10.30"]
[Round "2.2"]
[White "Bjerre, Jonas Buhl"]
[Black "Thybo, Jesper Sondergaard"]
[Result "1-0"]
[ECO "B34"]
[WhiteElo "2612"]
[BlackElo "2498"]
[Annotator "ChessBase"]
[PlyCount "105"]
[EventDate "2022.10.29"]
[EventType "team-tourn"]
[EventCountry "DEN"]
[SourceTitle "playchess.com"]
[Source "ChessBase"]
[SourceQuality "1"]
[TimeControl "40/5400+30:1800+30"]

1. e4 {[%emt 0:00:07]} c5 {[%emt 0:00:39]} 2. Nf3 {[%emt 0:00:12]} Nc6 {[%emt 0:00:11]} 3. d4 {[%emt 0:00:52]} cxd4 {[%emt 0:00:07]} 4. Nxd4 {[%emt 0:00:05]} Nf6 {[%emt 0:00:11]} 5. Nc3 {[%emt 0:00:05]} e5 {[%emt 0:00:11]} 6. Nde2 {[%emt 0:04:03]} Bc5 {[%emt 0:00:28]} 7. Ng3 {[%emt 0:00:22]} O-O {[%emt 0:00:59]} 8. Bc4 {[%emt 0:01:29]} d6 {[%emt 0:01:24]} 9. O-O {[%emt 0:01:47]} Ng4 {[%emt 0:06:14]} 10. h3 {[%emt 0:01:43]} Qh4 {[%emt 0:01:35]} 11. Qf3 {[%emt 0:03:07]} Nd4 {[%emt 0:02:33]} 12. Qd3 {[%emt 0:00:20]} Be6 {[%emt 0:02:35]} 13. Bb3 {[%emt 0:04:12]} Nxb3 {[%emt 0:16:43]} 14. axb3 {[%emt 0:00:12]} Nf6 {[%emt 0:00:54]} 15. Be3 {[%emt 0:08:42]} a6 {[%emt 0:29:42]} 16. Bxc5 {[%emt 0:08:29]} dxc5 {[%emt 0:00:05]} 17. Qe3 {[%emt 0:06:46]} Rac8 {[%emt 0:02:47]} 18. Rfd1 {[%emt 0:03:45]} Qf4 {[%emt 0:03:36]} 19. Nf1 {[%emt 0:12:30]} h6 {[%emt 0:05:54]} 20. f3 {[%emt 0:09:26]} c4 {[%emt 0:09:59]} 21. b4 {[%emt 0:02:31]} Rc6 {[%emt 0:00:09]} 22. Ra5 {[%emt 0:06:52]} b5 {[%emt 0:02:38]} 23. Raa1 {[%emt 0:04:30]} Bc8 {[%emt 0:01:50]} 24. Rd2 {[%emt 0:01:44]} Nh5 {[%emt 0:03:23]} 25. Nd5 {[%emt 0:01:18]} Qh4 {[%emt 0:00:36]} 26. Qf2 {[%emt 0:01:43]} Qxf2+ {[%emt 0:01:38]} 27. Kxf2 {[%emt 0:00:06]} Re8 {[%emt 0:00:22]} 28. Nfe3 {[%emt 0:02:13]} Nf4 {[%emt 0:00:59]} 29. Rad1 {[%emt 0:01:39]} g5 {[%emt 0:01:29]} 30. Nf5 {[%emt 0:02:18]} Bxf5 {[%emt 0:03:21]} 31. exf5 {[%emt 0:00:10]} Kg7 {[%emt 0:00:27]} 32. Nc3 {[%emt 0:01:09]} Nh5 {[%emt 0:00:27]} 33. Rd6 {[%emt 0:00:56]} Rec8 {[%emt 0:00:44]} 34. Ne4 {[%emt 0:00:37]} Nf4 {[%emt 0:00:14]} 35. Rxc6 {[%emt 0:01:52]} Rxc6 {[%emt 0:00:02]} 36. Rd7 {[%emt 0:00:05]} Kg8 {[%emt 0:01:28]} 37. Re7 {[%emt 0:05:47]} Nd5 {[%emt 0:00:25]} 38. Re8+ {[%emt 0:00:36]} Kg7 {[%emt 0:00:44]} 39. c3 {[%emt 0:00:31]} Nf4 {[%emt 0:00:43]} 40. g3 {[%emt 0:01:58]} Nxh3+ {[%emt 0:01:28]} 41. Ke3 {[%emt 0:04:07]} f6 {[%emt 0:13:35]} 42. Re7+ {[%emt 0:02:46]} Kg8 {[%emt 0:00:50]} 43. Re6 {[%emt 0:03:51]} Rxe6 {[%emt 0:06:29]} 44. fxe6 {[%emt 0:00:04]} Kf8 {[%emt 0:02:06]} 45. Nxf6 {[%emt 0:02:04]} Ke7 {[%emt 0:00:02]} 46. Ng8+ {[%emt 0:00:29]} Kxe6 {[%emt 0:00:03]} 47. Nxh6 {[%emt 0:00:05]} Kf6 {[%emt 0:00:31]} 48. Ke2 {[%emt 0:02:36]} Kg6 {[%emt 0:04:59]} 49. Ng4 {[%emt 0:00:21]} Kf5 {[%emt 0:00:10]} 50. Ne3+ {[%emt 0:02:24]} Ke6 {[%emt 0:00:07]} 51. Kf1 {[%emt 0:02:13]} g4 {[%emt 0:01:12]} 52. Nxg4 {[%emt 0:00:23]} Ng5 {[%emt 0:00:04]} 53. Nxe5 {[%emt 0:00:51]} 1-0

[Event "Denmark Team Championship 2022"]
[Site "Denmark"]
[Date "2022.10.30"]
[Round "2.2"]
[White "Castellanos Rodriguez, Renier"]
[Black "Haubro, Martin"]
[Result "1-0"]
[ECO "C77"]
[WhiteElo "2474"]
[BlackElo "2398"]
[Annotator "ChessBase"]
[PlyCount "83"]
[EventDate "2022.10.29"]
[EventType "team-tourn"]
[EventCountry "DEN"]
[SourceTitle "playchess.com"]
[Source "ChessBase"]
[SourceQuality "1"]
[TimeControl "40/5400+30:1800+30"]

1. e4 {[%emt 0:00:03]} e5 {[%emt 0:00:04]} 2. Nf3 {[%emt 0:00:06]} Nc6 {[%emt 0:00:04]} 3. Bb5 {[%emt 0:00:06]} a6 {[%emt 0:00:03]} 4. Ba4 {[%emt 0:00:05]} Nf6 {[%emt 0:00:10]} 5. d3 {[%emt 0:00:15]} d6 {[%emt 0:00:36]} 6. c3 {[%emt 0:01:11]} g6 {[%emt 0:00:09]} 7. h3 {[%emt 0:01:26]} Bg7 {[%emt 0:02:14]} 8. O-O {[%emt 0:01:53]} O-O {[%emt 0:00:11]} 9. Re1 {[%emt 0:01:56]} Re8 {[%emt 0:03:30]} 10. Be3 {[%emt 0:01:44]} h6 {[%emt 0:03:41]} 11. Nbd2 {[%emt 0:02:41]} b5 {[%emt 0:07:02]} 12. Bc2 {[%emt 0:00:48]} Bb7 {[%emt 0:10:53]} 13. a4 {[%emt 0:02:13]} Nb8 {[%emt 0:16:41]} 14. b4 {[%emt 0:06:03]} Nbd7 {[%emt 0:06:06]} 15. Nb3 {[%emt 0:02:12]} Qb8 {[%emt 0:06:42]} 16. Na5 {[%emt 0:03:06]} Bc8 {[%emt 0:00:06]} 17. Qd2 {[%emt 0:04:45]} Kh7 {[%emt 0:00:27]} 18. Bb3 {[%emt 0:03:04]} Rf8 {[%emt 0:01:49]} 19. Qa2 {[%emt 0:06:30]} c5 {[%emt 0:02:27]} 20. Nc6 {[%emt 0:17:24]} Qc7 {[%emt 0:12:36]} 21. Ne7 {[%emt 0:03:23]} Nb6 {[%emt 0:08:56]} 22. Nxc8 {[%emt 0:00:29]} Raxc8 {[%emt 0:02:53]} 23. axb5 {[%emt 0:04:52]} axb5 {[%emt 0:00:19]} 24. Qa5 {[%emt 0:03:30]} Nbd7 {[%emt 0:00:46]} 25. Qxb5 {[%emt 0:04:18]} cxb4 {[%emt 0:01:12]} 26. cxb4 {[%emt 0:00:56]} Rb8 {[%emt 0:00:41]} 27. Qc4 {[%emt 0:05:53]} Qxc4 {[%emt 0:00:03]} 28. Bxc4 {[%emt 0:00:04]} Rxb4 {[%emt 0:00:03]} 29. Ra7 {[%emt 0:01:02]} Kg8 {[%emt 0:00:55]} 30. Rea1 {[%emt 0:05:53]} Rfb8 {[%emt 0:01:11]} 31. Rc7 {[%emt 0:00:56]} R4b7 {[%emt 0:04:10]} 32. Ra7 {[%emt 0:00:52]} Rxc7 {[%emt 0:00:03]} 33. Rxc7 {[%emt 0:00:05]} Kf8 {[%emt 0:00:27]} 34. g4 {[%emt 0:00:47]} Ke7 {[%emt 0:01:43]} 35. Kg2 {[%emt 0:00:56]} Nh7 {[%emt 0:03:45]} 36. Bxf7 {[%emt 0:01:08]} Nhf8 {[%emt 0:00:08]} 37. Bd5 {[%emt 0:01:03]} Rb4 {[%emt 0:01:12]} 38. Ra7 {[%emt 0:00:48]} Rb8 {[%emt 0:01:49]} 39. Nd2 {[%emt 0:00:30]} Rc8 {[%emt 0:01:11]} 40. Nc4 {[%emt 0:00:37]} Rd8 {[%emt 0:01:03]} 41. Bb6 {[%emt 0:32:21]} Rc8 {[%emt 0:30:09]} 42. Bc7 {[%emt 0:01:04]} 1-0

[Event "Denmark Team Championship 2022"]
[Site "Denmark"]
[Date "2022.10.30"]
[Round "2.2"]
[White "Domingo Nunez, Ruben"]
[Black "Veng, Johnni"]
[Result "1-0"]
[ECO "B20"]
[WhiteElo "2383"]
[BlackElo "2214"]
[Annotator "ChessBase"]
[PlyCount "47"]
[EventDate "2022.10.29"]
[EventType "team-tourn"]
[EventCountry "DEN"]
[SourceTitle "playchess.com"]
[Source "ChessBase"]
[SourceQuality "1"]
[TimeControl "40/5400+30:1800+30"]

1. e4 {[%emt 0:08:57]} c5 {[%emt 0:02:08]} 2. b3 {[%emt 0:06:09]} d6 {[%emt 0:02:27]} 3. Bb2 {[%emt 0:01:02]} Nf6 {[%emt 0:01:43]} 4. Bb5+ {[%emt 0:00:49]} Bd7 {[%emt 0:02:19]} 5. Bxd7+ {[%emt 0:01:37]} Qxd7 {[%emt 0:09:44]} 6. Qe2 {[%emt 0:00:20]} Nc6 {[%emt 0:01:02]} 7. f4 {[%emt 0:00:35]} e6 {[%emt 0:06:24]} 8. Nf3 {[%emt 0:01:18]} Be7 {[%emt 0:15:18]} 9. c4 {[%emt 0:07:51]} Nh5 {[%emt 0:20:19]} 10. g3 {[%emt 0:06:00]} Bf6 {[%emt 0:08:34]} 11. Nc3 {[%emt 0:19:42]} g6 {[%emt 0:14:16]} 12. e5 {[%emt 0:04:45]} dxe5 {[%emt 0:04:05]} 13. Ne4 {[%emt 0:05:16]} Bg7 {[%emt 0:04:59]} 14. fxe5 {[%emt 0:03:22]} O-O-O {[%emt 0:03:25]} 15. Nxc5 {[%emt 0:11:07]} Qc7 {[%emt 0:00:20]} 16. d4 {[%emt 0:00:50]} Nxd4 {[%emt 0:00:52]} 17. Bxd4 {[%emt 0:00:08]} Rxd4 {[%emt 0:00:07]} 18. Nxd4 {[%emt 0:00:12]} Qxc5 {[%emt 0:00:06]} 19. Nf3 {[%emt 0:00:42]} Rd8 {[%emt 0:00:33]} 20. Rd1 {[%emt 0:06:36]} Rxd1+ {[%emt 0:00:05]} 21. Kxd1 {[%emt 0:00:06]} g5 {[%emt 0:00:40]} 22. Re1 {[%emt 0:00:06]} g4 {[%emt 0:00:11]} 23. Ng5 {[%emt 0:00:58]} Qd4+ {[%emt 0:00:38]} 24. Kc2 {[%emt 0:00:05]} 1-0

[Event "Denmark Team Championship 2022"]
[Site "Denmark"]
[Date "2022.10.30"]
[Round "2.2"]
[White "Vinter-Schou, Uffe"]
[Black "Schandorff, Lars"]
[Result "1/2-1/2"]
[ECO "C49"]
[WhiteElo "2382"]
[BlackElo "2476"]
[Annotator "ChessBase"]
[PlyCount "45"]
[EventDate "2022.10.29"]
[EventType "team-tourn"]
[EventCountry "DEN"]
[SourceTitle "playchess.com"]
[Source "ChessBase"]
[SourceQuality "1"]
[TimeControl "40/5400+30:1800+30"]

1. e4 {[%emt 0:00:10]} e5 {[%emt 0:00:15]} 2. Nf3 {[%emt 0:00:10]} Nc6 {[%emt 0:00:14]} 3. Nc3 {[%emt 0:00:46]} Nf6 {[%emt 0:00:13]} 4. Bb5 {[%emt 0:00:08]} Bb4 {[%emt 0:01:23]} 5. O-O {[%emt 0:00:10]} O-O {[%emt 0:00:08]} 6. Bxc6 {[%emt 0:00:25]} dxc6 {[%emt 0:00:26]} 7. d3 {[%emt 0:00:05]} Nd7 {[%emt 0:01:45]} 8. Bg5 {[%emt 0:00:27]} f6 {[%emt 0:03:07]} 9. Be3 {[%emt 0:00:06]} Re8 {[%emt 0:07:49]} 10. Nh4 {[%emt 0:02:12]} Bxc3 {[%emt 0:03:24]} 11. bxc3 {[%emt 0:00:08]} Nf8 {[%emt 0:00:09]} 12. Qf3 {[%emt 0:15:01]} Kh8 {[%emt 0:22:29]} 13. Kh1 {[%emt 0:31:00]} Be6 {[%emt 0:09:52]} 14. Rg1 {[%emt 0:11:30]} b6 {[%emt 0:05:46]} 15. g4 {[%emt 0:08:28]} g5 {[%emt 0:01:01]} 16. Nf5 {[%emt 0:03:46]} Ng6 {[%emt 0:00:46]} 17. Qh3 {[%emt 0:02:02]} Rg8 {[%emt 0:06:02]} 18. Ng3 {[%emt 0:03:42]} Qd7 {[%emt 0:04:05]} 19. f3 {[%emt 0:00:49]} Qf7 {[%emt 0:01:21]} 20. Nh5 {[%emt 0:04:08]} Nf4 {[%emt 0:06:42]} 21. Nxf4 {[%emt 0:01:21]} gxf4 {[%emt 0:00:48]} 22. Bf2 {[%emt 0:00:09]} Rg6 {[%emt 0:06:07]} 23. Qf1 {[%emt 0:03:42]} 1/2-1/2

[Event "Denmark Team Championship 2022"]
[Site "Denmark"]
[Date "2022.10.30"]
[Round "2.3"]
[White "Rozentalis, Eduardas"]
[Black "Andersen, Mads"]
[Result "1/2-1/2"]
[ECO "C60"]
[WhiteElo "2500"]
[BlackElo "2604"]
[Annotator "ChessBase"]
[PlyCount "31"]
[EventDate "2022.10.29"]
[EventType "team-tourn"]
[EventCountry "DEN"]
[SourceTitle "playchess.com"]
[Source "ChessBase"]
[SourceQuality "1"]
[TimeControl "40/5400+30:1800+30"]

1. e4 {[%emt 0:00:04]} e5 {[%emt 0:00:22]} 2. Nf3 {[%emt 0:00:21]} Nc6 {[%emt 0:00:08]} 3. Bb5 {[%emt 0:00:26]} Nge7 {[%emt 0:00:15]} 4. O-O {[%emt 0:04:06]} g6 {[%emt 0:00:26]} 5. d4 {[%emt 0:01:18]} exd4 {[%emt 0:00:23]} 6. Nxd4 {[%emt 0:00:21]} Bg7 {[%emt 0:00:34]} 7. Be3 {[%emt 0:05:01]} O-O {[%emt 0:01:14]} 8. Nc3 {[%emt 0:00:35]} d5 {[%emt 0:03:26]} 9. exd5 {[%emt 0:06:39]} Nb4 {[%emt 0:00:57]} 10. Nde2 {[%emt 0:06:35]} Nbxd5 {[%emt 0:20:06]} 11. Nxd5 {[%emt 0:11:30]} Qxd5 {[%emt 0:00:27]} 12. Qxd5 {[%emt 0:00:33]} Nxd5 {[%emt 0:00:07]} 13. Bd4 {[%emt 0:00:15]} Nf4 {[%emt 0:11:26]} 14. Bxg7 {[%emt 0:08:48]} Nxe2+ {[%emt 0:00:10]} 15. Bxe2 {[%emt 0:00:03]} Kxg7 {[%emt 0:00:09]} 16. Rad1 {[%emt 0:00:15]} 1/2-1/2

[Event "Denmark Team Championship 2022"]
[Site "Denmark"]
[Date "2022.10.30"]
[Round "2.3"]
[White "Percivaldi, Martin"]
[Black "Skytte, Rasmus"]
[Result "1-0"]
[ECO "D30"]
[WhiteElo "2400"]
[BlackElo "2354"]
[Annotator "ChessBase"]
[PlyCount "63"]
[EventDate "2022.10.29"]
[EventType "team-tourn"]
[EventCountry "DEN"]
[SourceTitle "playchess.com"]
[Source "ChessBase"]
[SourceQuality "1"]
[TimeControl "40/5400+30:1800+30"]

1. d4 {[%emt 0:00:05]} d5 {[%emt 0:00:36]} 2. c4 {[%emt 0:00:15]} e6 {[%emt 0:00:10]} 3. Nf3 {[%emt 0:00:11]} a6 {[%emt 0:00:43]} 4. cxd5 {[%emt 0:04:37]} exd5 {[%emt 0:00:15]} 5. Nc3 {[%emt 0:00:07]} Nf6 {[%emt 0:03:27]} 6. Bg5 {[%emt 0:00:14]} Be7 {[%emt 0:08:08]} 7. e3 {[%emt 0:01:13]} Be6 {[%emt 0:01:17]} 8. Bd3 {[%emt 0:01:19]} h6 {[%emt 0:00:48]} 9. Bf4 {[%emt 0:03:53]} O-O {[%emt 0:06:19]} 10. h3 {[%emt 0:01:00]} c5 {[%emt 0:07:55]} 11. dxc5 {[%emt 0:07:22]} Bxc5 {[%emt 0:00:26]} 12. O-O {[%emt 0:00:19]} Nc6 {[%emt 0:00:16]} 13. Rc1 {[%emt 0:00:10]} Ba7 {[%emt 0:05:21]} 14. Ne2 {[%emt 0:11:36]} Rc8 {[%emt 0:05:41]} 15. Ne5 {[%emt 0:06:38]} Nb4 {[%emt 0:08:55]} 16. Rxc8 {[%emt 0:02:50]} Qxc8 {[%emt 0:02:29]} 17. Bb1 {[%emt 0:02:20]} Ne4 {[%emt 0:08:52]} 18. Nd4 {[%emt 0:06:52]} Bxd4 {[%emt 0:07:51]} 19. Qxd4 {[%emt 0:03:17]} Nc6 {[%emt 0:00:36]} 20. Nxc6 {[%emt 0:07:08]} Qxc6 {[%emt 0:00:53]} 21. Rd1 {[%emt 0:00:42]} Rc8 {[%emt 0:02:15]} 22. f3 {[%emt 0:03:54]} Nd6 {[%emt 0:04:05]} 23. e4 {[%emt 0:10:12]} Nb5 {[%emt 0:03:41]} 24. Qd3 {[%emt 0:01:38]} dxe4 {[%emt 0:14:14]} 25. Qxe4 {[%emt 0:00:09]} Qxe4 {[%emt 0:01:59]} 26. Bxe4 {[%emt 0:00:13]} Bxa2 {[%emt 0:01:20]} 27. Bxb7 {[%emt 0:00:38]} Re8 {[%emt 0:03:01]} 28. Bxa6 {[%emt 0:01:30]} Bc4 {[%emt 0:00:15]} 29. Rc1 {[%emt 0:06:04]} Re6 {[%emt 0:01:40]} 30. Bc8 {[%emt 0:02:51]} Rc6 {[%emt 0:00:39]} 31. Bd7 {[%emt 0:00:26]} Rc5 {[%emt 0:00:12]} 32. Bxb5 {[%emt 0:01:23]} 1-0

[Event "Denmark Team Championship 2022"]
[Site "Denmark"]
[Date "2022.10.30"]
[Round "2.3"]
[White "Brynell, Stellan"]
[Black "Ramsdal, Jens Albert"]
[Result "1-0"]
[ECO "D38"]
[WhiteElo "2383"]
[BlackElo "2318"]
[Annotator "ChessBase"]
[PlyCount "109"]
[EventDate "2022.10.29"]
[EventType "team-tourn"]
[EventCountry "DEN"]
[SourceTitle "playchess.com"]
[Source "ChessBase"]
[SourceQuality "1"]
[TimeControl "40/5400+30:1800+30"]

1. d4 {[%emt 0:00:11]} Nf6 {[%emt 0:00:16]} 2. Nf3 {[%emt 0:00:10]} e6 {[%emt 0:00:07]} 3. c4 {[%emt 0:01:12]} d5 {[%emt 0:00:06]} 4. Nc3 {[%emt 0:03:58]} Bb4 {[%emt 0:00:27]} 5. e3 {[%emt 0:01:02]} O-O {[%emt 0:03:05]} 6. Bd3 {[%emt 0:00:08]} dxc4 {[%emt 0:06:59]} 7. Bxc4 {[%emt 0:00:13]} a6 {[%emt 0:01:46]} 8. O-O {[%emt 0:07:28]} b5 {[%emt 0:01:26]} 9. Be2 {[%emt 0:02:55]} Be7 {[%emt 0:07:25]} 10. b3 {[%emt 0:20:22]} Nbd7 {[%emt 0:06:16]} 11. Bb2 {[%emt 0:00:36]} Bb7 {[%emt 0:00:17]} 12. a4 {[%emt 0:01:01]} c6 {[%emt 0:05:59]} 13. Bd3 {[%emt 0:03:14]} Qb6 {[%emt 0:02:06]} 14. Qe2 {[%emt 0:00:47]} Rfd8 {[%emt 0:00:31]} 15. Rfd1 {[%emt 0:05:04]} Rac8 {[%emt 0:01:29]} 16. Rac1 {[%emt 0:01:36]} Qa7 {[%emt 0:02:26]} 17. e4 {[%emt 0:08:54]} Nf8 {[%emt 0:05:16]} 18. e5 {[%emt 0:02:08]} Nd5 {[%emt 0:06:59]} 19. Nxd5 {[%emt 0:00:21]} Rxd5 {[%emt 0:04:57]} 20. axb5 {[%emt 0:03:22]} axb5 {[%emt 0:11:58]} 21. Nd2 {[%emt 0:08:42]} Rdd8 {[%emt 0:12:10]} 22. Ne4 {[%emt 0:02:23]} Qb6 {[%emt 0:03:54]} 23. Qc2 {[%emt 0:05:53]} Ra8 {[%emt 0:04:11]} 24. Ra1 {[%emt 0:00:54]} Rxa1 {[%emt 0:00:19]} 25. Rxa1 {[%emt 0:00:10]} Rxd4 {[%emt 0:04:18]} 26. Bxd4 {[%emt 0:00:40]} Qxd4 {[%emt 0:00:02]} 27. Qc3 {[%emt 0:00:29]} Qxc3 {[%emt 0:02:11]} 28. Nxc3 {[%emt 0:00:02]} Bc5 {[%emt 0:00:38]} 29. Rd1 {[%emt 0:03:40]} f5 {[%emt 0:01:46]} 30. exf6 {[%emt 0:01:38]} gxf6 {[%emt 0:00:01]} 31. Be4 {[%emt 0:02:38]} f5 {[%emt 0:02:24]} 32. Bf3 {[%emt 0:00:06]} e5 {[%emt 0:00:41]} 33. Rd8 {[%emt 0:05:14]} e4 {[%emt 0:01:14]} 34. Bh5 {[%emt 0:01:14]} e3 {[%emt 0:01:11]} 35. fxe3 {[%emt 0:00:40]} Bxe3+ {[%emt 0:00:23]} 36. Kf1 {[%emt 0:00:29]} b4 {[%emt 0:01:13]} 37. Nd1 {[%emt 0:03:25]} Bf4 {[%emt 0:00:04]} 38. g3 {[%emt 0:00:33]} Bc7 {[%emt 0:00:07]} 39. Re8 {[%emt 0:00:26]} c5 {[%emt 0:01:31]} 40. Re7 {[%emt 0:03:21]} Ba6+ {[%emt 0:00:04]} 41. Be2 {[%emt 0:06:57]} Bd6 {[%emt 0:02:13]} 42. Ra7 {[%emt 0:00:11]} Bxe2+ {[%emt 0:00:41]} 43. Kxe2 {[%emt 0:00:05]} f4 {[%emt 0:04:38]} 44. gxf4 {[%emt 0:06:57]} Bxf4 {[%emt 0:02:07]} 45. h3 {[%emt 0:00:25]} Ng6 {[%emt 0:03:04]} 46. Nf2 {[%emt 0:02:18]} Bd6 {[%emt 0:04:53]} 47. Ne4 {[%emt 0:02:27]} Be7 {[%emt 0:00:20]} 48. Kf3 {[%emt 0:03:16]} Kf8 {[%emt 0:00:45]} 49. Rc7 {[%emt 0:03:32]} c4 {[%emt 0:09:39]} 50. bxc4 {[%emt 0:00:17]} b3 {[%emt 0:00:07]} 51. c5 {[%emt 0:02:32]} Ne5+ {[%emt 0:02:25]} 52. Ke2 {[%emt 0:00:29]} Kf7 {[%emt 0:01:32]} 53. Kd2 {[%emt 0:02:52]} b2 {[%emt 0:02:07]} 54. Kc2 {[%emt 0:01:15]} Nc4 {[%emt 0:00:04]} 55. Nd6+ {[%emt 0:00:23]} 1-0

[Event "Denmark Team Championship 2022"]
[Site "Denmark"]
[Date "2022.10.30"]
[Round "2.3"]
[White "Liu, Casper"]
[Black "Aagaard, Jacob"]
[Result "0-1"]
[ECO "E01"]
[WhiteElo "2317"]
[BlackElo "2455"]
[Annotator "ChessBase"]
[PlyCount "42"]
[EventDate "2022.10.29"]
[EventType "team-tourn"]
[EventCountry "DEN"]
[SourceTitle "playchess.com"]
[Source "ChessBase"]
[SourceQuality "1"]
[TimeControl "40/5400+30:1800+30"]

1. d4 {[%emt 0:00:02]} Nf6 {[%emt 0:00:13]} 2. c4 {[%emt 0:00:05]} e6 {[%emt 0:00:06]} 3. g3 {[%emt 0:00:04]} d5 {[%emt 0:01:05]} 4. Bg2 {[%emt 0:00:04]} Bb4+ {[%emt 0:01:55]} 5. Bd2 {[%emt 0:00:14]} Bxd2+ {[%emt 0:01:00]} 6. Nxd2 {[%emt 0:01:53]} O-O {[%emt 0:00:21]} 7. Ngf3 {[%emt 0:01:30]} b6 {[%emt 0:00:09]} 8. Ne5 {[%emt 0:04:25]} Bb7 {[%emt 0:02:02]} 9. Qa4 {[%emt 0:00:17]} c5 {[%emt 0:03:46]} 10. dxc5 {[%emt 0:02:37]} bxc5 {[%emt 0:00:24]} 11. O-O {[%emt 0:05:34]} Qb6 {[%emt 0:02:34]} 12. Nb3 {[%emt 0:12:25]} Rc8 {[%emt 0:05:51]} 13. e3 {[%emt 0:03:39]} Nc6 {[%emt 0:02:46]} 14. Nd3 {[%emt 0:01:41]} dxc4 {[%emt 0:02:08]} 15. Qxc4 {[%emt 0:02:52]} Ba6 {[%emt 0:04:26]} 16. Qc3 {[%emt 0:00:07]} c4 {[%emt 0:07:09]} 17. Bxc6 {[%emt 0:02:58]} cxb3 {[%emt 0:10:53]} 18. Ne5 {[%emt 0:03:54]} Bxf1 {[%emt 0:03:30]} 19. Kxf1 {[%emt 0:00:57]} Nd5 {[%emt 0:03:11]} 20. Qc4 {[%emt 0:01:04]} Ne7 {[%emt 0:00:43]} 21. Rc1 {[%emt 0:05:37]} bxa2 {[%emt 0:04:15]} 0-1

[Event "Denmark Team Championship 2022"]
[Site "Denmark"]
[Date "2022.10.30"]
[Round "2.3"]
[White "Sloth, Jorn"]
[Black "Christensen, Stefan"]
[Result "1/2-1/2"]
[ECO "E17"]
[WhiteElo "2296"]
[BlackElo "2293"]
[Annotator "ChessBase"]
[PlyCount "60"]
[EventDate "2022.10.29"]
[EventType "team-tourn"]
[EventCountry "DEN"]
[SourceTitle "playchess.com"]
[Source "ChessBase"]
[SourceQuality "1"]
[TimeControl "40/5400+30:1800+30"]

1. c4 {[%emt 0:00:45]} Nf6 {[%emt 0:00:44]} 2. Nf3 {[%emt 0:01:38]} b6 {[%emt 0:00:34]} 3. g3 {[%emt 0:05:05]} Bb7 {[%emt 0:00:35]} 4. Bg2 {[%emt 0:00:08]} e6 {[%emt 0:00:40]} 5. Nc3 {[%emt 0:00:44]} Be7 {[%emt 0:07:00]} 6. d4 {[%emt 0:03:15]} Ne4 {[%emt 0:01:02]} 7. Bd2 {[%emt 0:08:43]} Bf6 {[%emt 0:01:16]} 8. Qc2 {[%emt 0:03:46]} Nxd2 {[%emt 0:01:10]} 9. Qxd2 {[%emt 0:00:06]} O-O {[%emt 0:01:48]} 10. Rd1 {[%emt 0:03:46]} d6 {[%emt 0:05:01]} 11. h4 {[%emt 0:06:05]} Nd7 {[%emt 0:03:18]} 12. Qd3 {[%emt 0:05:48]} g6 {[%emt 0:04:25]} 13. h5 {[%emt 0:04:06]} e5 {[%emt 0:06:46]} 14. hxg6 {[%emt 0:14:42]} fxg6 {[%emt 0:02:18]} 15. d5 {[%emt 0:21:02]} Nc5 {[%emt 0:20:05]} 16. Qe3 {[%emt 0:00:27]} e4 {[%emt 0:01:49]} 17. Nxe4 Nxe4 {[%emt 0:01:40]} 18. Qxe4 {[%emt 0:00:34]} Bxb2 {[%emt 0:00:36]} 19. Qh4 {[%emt 0:04:19]} Qxh4 {[%emt 0:02:16]} 20. Rxh4 {[%emt 0:00:01]} Bf6 {[%emt 0:06:25]} 21. Re4 {[%emt 0:05:10]} Ba6 22. Bh3 {[%emt 0:01:25]} Rfe8 {[%emt 0:04:47]} 23. Be6+ {[%emt 0:04:08]} Kg7 {[%emt 0:02:12]} 24. Kd2 {[%emt 0:01:00]} Bc8 25. Kd3 {[%emt 0:00:02]} Bxe6 {[%emt 0:03:18]} 26. dxe6 {[%emt 0:02:14]} Re7 27. Nd4 {[%emt 0:00:03]} Bxd4 {[%emt 0:08:11]} 28. Kxd4 {[%emt 0:01:11]} c6 {[%emt 0:01:33]} 29. Kc3 {[%emt 0:00:16]} Rd8 {[%emt 0:06:17]} 30. Rd3 g5 {[%emt 0:00:30]} 1/2-1/2

[Event "Denmark Team Championship 2022"]
[Site "Denmark"]
[Date "2022.10.30"]
[Round "2.4"]
[White "Svane, Frederik"]
[Black "Chatalbashev, Boris"]
[Result "1-0"]
[ECO "B08"]
[WhiteElo "2566"]
[BlackElo "2488"]
[Annotator "ChessBase"]
[PlyCount "65"]
[EventDate "2022.10.29"]
[EventType "team-tourn"]
[EventCountry "DEN"]
[SourceTitle "playchess.com"]
[Source "ChessBase"]
[SourceQuality "1"]
[TimeControl "40/5400+30:1800+30"]

1. e4 {[%emt 0:00:03]} d6 {[%emt 0:00:05]} 2. d4 {[%emt 0:00:07]} Nf6 {[%emt 0:00:05]} 3. Nc3 {[%emt 0:00:06]} g6 {[%emt 0:00:06]} 4. Nf3 {[%emt 0:00:05]} Bg7 {[%emt 0:00:07]} 5. Be2 {[%emt 0:00:04]} O-O {[%emt 0:00:10]} 6. O-O {[%emt 0:00:06]} Bg4 {[%emt 0:01:26]} 7. Be3 {[%emt 0:03:50]} Nc6 {[%emt 0:00:09]} 8. d5 {[%emt 0:00:59]} Bxf3 {[%emt 0:00:07]} 9. Bxf3 {[%emt 0:00:25]} Ne5 {[%emt 0:00:06]} 10. Be2 {[%emt 0:00:05]} c6 {[%emt 0:00:05]} 11. a4 {[%emt 0:00:05]} a5 {[%emt 0:00:47]} 12. Ra3 {[%emt 0:04:01]} Qc7 {[%emt 0:00:52]} 13. Qd2 {[%emt 0:10:10]} cxd5 {[%emt 0:13:36]} 14. exd5 {[%emt 0:05:42]} Nc4 {[%emt 0:00:35]} 15. Bxc4 {[%emt 0:00:17]} Qxc4 {[%emt 0:00:06]} 16. Bg5 {[%emt 0:19:57]} Rfc8 {[%emt 0:12:10]} 17. Re1 {[%emt 0:16:35]} Qg4 {[%emt 0:26:23]} 18. Rxe7 {[%emt 0:09:54]} Rc4 {[%emt 0:02:49]} 19. h3 {[%emt 0:01:48]} Qc8 {[%emt 0:00:39]} 20. Rb3 {[%emt 0:02:38]} Nd7 {[%emt 0:01:21]} 21. Qe2 {[%emt 0:01:48]} Rb4 {[%emt 0:14:42]} 22. Rxb4 {[%emt 0:03:40]} axb4 {[%emt 0:00:02]} 23. Nb5 {[%emt 0:00:25]} Be5 {[%emt 0:02:48]} 24. f4 {[%emt 0:01:26]} Bxb2 {[%emt 0:01:01]} 25. Kh2 {[%emt 0:00:27]} h6 {[%emt 0:07:07]} 26. Nxd6 {[%emt 0:03:43]} Qf8 {[%emt 0:00:19]} 27. Nxf7 {[%emt 0:02:15]} hxg5 {[%emt 0:00:08]} 28. Qe6 {[%emt 0:01:10]} Nc5 {[%emt 0:01:30]} 29. Qxg6+ {[%emt 0:00:37]} Bg7 {[%emt 0:00:16]} 30. Nh6+ {[%emt 0:00:27]} Kh8 {[%emt 0:00:03]} 31. Rf7 {[%emt 0:03:11]} gxf4 {[%emt 0:00:20]} 32. Nf5 {[%emt 0:00:53]} f3 {[%emt 0:04:49]} 33. Rxg7 {[%emt 0:00:26]} 1-0